bitfinex-derivatives/quotes_BTCF0:USTF0_20251111
["timestamp","ask_amount","ask_price","bid_price","bid_amount"]
[1762864314001,0.09959278,105000.0,104990.0,0.1533314]
[1762864315807,0.00214245,105000.0,104990.0,0.25982204]
[1762864316309,0.00214245,105000.0,104990.0,0.34535144]
[1762864317107,0.00114245,105000.0,104990.0,0.2388608]
[1762864317310,0.00114245,105000.0,104990.0,0.25982204]
[1762864317612,0.09639475,105000.0,104990.0,0.25982204]
[1762864317909,0.09859278,105000.0,104990.0,0.5153714]
[1762864318111,0.09759278,105000.0,104990.0,0.5153714]
[1762864320303,0.20508342,105000.0,104990.0,0.5153314]
[1762864320707,0.20508342,105000.0,104990.0,0.1533314]
[1762864320905,0.20508342,105000.0,104990.0,0.5153314]
[1762864321113,0.20608342,105000.0,104990.0,0.42007]
[1762864321301,0.20608342,105000.0,104990.0,0.05807]
[1762864321702,0.20608342,105000.0,104990.0,0.1533314]
[1762864323307,0.20608342,105000.0,104990.0,0.05807]
[1762864323609,0.20608342,105000.0,104990.0,0.1533314]
[1762864326713,0.20608342,105000.0,104990.0,0.05807]
[1762864327106,0.20608342,105000.0,104990.0,0.1533314]
[1762864327913,0.20608342,105000.0,104990.0,0.05807]
[1762864331007,0.31261468,105000.0,104990.0,0.05807]
[1762864336118,0.31261468,105000.0,104990.0,0.1533314]
[1762864336619,0.31261468,105000.0,104990.0,0.05807]
[1762864339117,0.09959278,105000.0,104990.0,0.05807]
[1762864339322,0.31261468,105000.0,104990.0,0.05807]
[1762864341616,0.09959278,105000.0,104990.0,0.05807]
[1762864341816,0.31261468,105000.0,104990.0,0.05807]
[1762864346115,0.20610373,105000.0,104990.0,0.25984235]
[1762864346416,0.56782373,105000.0,104990.0,0.25984235]
[1762864346720,0.56782373,105000.0,104990.0,0.05807]
[1762864346924,0.46131278,105000.0,104990.0,0.1533314]
[1762864347113,0.56782373,105000.0,104990.0,0.1533314]
[1762864347420,0.56790373,105000.0,104990.0,0.2388608]
[1762864347621,0.56790373,105000.0,104990.0,0.1533314]
[1762864348021,0.56790373,105000.0,104990.0,0.2388608]
[1762864348420,0.56790373,105000.0,104990.0,0.1533314]
[1762864348720,0.56790373,105000.0,104990.0,0.2388608]
[1762864349914,0.20610373,105000.0,104990.0,0.2388608]
[1762864350422,0.56782373,105000.0,104990.0,0.2388608]
[1762864350624,0.56782373,105000.0,104990.0,0.34537175]
[1762864350921,0.56782373,105000.0,104990.0,0.2388608]
[1762864351624,0.20610373,105000.0,104990.0,0.2388608]
[1762864351921,0.56782373,105000.0,104990.0,0.2388608]
[1762864354422,0.56782373,105000.0,104990.0,0.1533314]
[1762864358530,0.46131278,105000.0,104990.0,0.1533314]
[1762864358729,0.56782373,105000.0,104990.0,0.25984235]
[1762864359830,0.09959278,105000.0,104990.0,0.1533314]
[1762864360026,0.09959278,105000.0,104990.0,0.25984235]
[1762864360328,0.00434048,105000.0,104990.0,0.1533314]
[1762864360533,0.00434048,105000.0,104990.0,0.34537175]
[1762864360727,0.00434048,105000.0,104990.0,0.25984235]
[1762864361222,0.00214245,105000.0,104990.0,0.34544964]
[1762864361627,0.00114245,105000.0,104990.0,0.34544964]
[1762864362023,0.00114245,105000.0,104990.0,0.25984235]
[1762864362425,0.00114245,105000.0,104990.0,0.34542818]
[1762864362625,0.00014245,105000.0,104990.0,0.34542818]
[1762864364427,0.56339175,105020.0,105010.0,0.05824]
[1762864364628,0.71558978,105020.0,105010.0,0.16475095]
[1762864364831,0.71558978,105020.0,105010.0,0.05824]
[1762864365531,0.71558978,105020.0,105010.0,0.1534832]
[1762864366330,0.71958978,105020.0,105010.0,0.1534832]
[1762864366632,0.71958978,105020.0,105010.0,0.25999415]
[1762864366633,0.15619803,105020.0,105010.0,0.25999415]
[1762864366826,0.154,105020.0,105010.0,0.25999415]
[1762864367027,0.004,105020.0,105010.0,0.34557998]
[1762864367423,0.00037095,105030.0,105020.0,0.1534742]
[1762864367629,0.00037095,105030.0,105020.0,0.25998515]
[1762864367828,0.00037095,105030.0,105020.0,0.7280961]
[1762864368023,0.00037095,105030.0,105020.0,0.81368193]
[1762864368230,0.20172325,105050.0,105040.0,0.153456]
[1762864368420,0.43392128,105050.0,105040.0,0.153456]
[1762864369027,0.43392128,105050.0,105040.0,0.25996695]
[1762864369428,0.43392128,105050.0,105040.0,0.26963408]
[1762864370130,0.43492128,105050.0,105040.0,0.26963408]
[1762864370533,0.43592128,105050.0,105040.0,0.26963408]
[1762864372732,0.32941033,105050.0,105040.0,0.16312313]
[1762864372933,0.43592128,105050.0,105040.0,0.26963408]
[1762864373336,0.43592128,105050.0,105040.0,0.16312313]
[1762864373637,0.43592128,105050.0,105040.0,0.26963408]
[1762864377636,0.23419803,105050.0,105040.0,0.26963408]
[1762864377840,0.03419803,105050.0,105040.0,0.26963408]
[1762864379438,0.12940503,105050.0,105040.0,0.26963408]
[1762864379741,0.03419803,105050.0,105040.0,0.26963408]
[1762864380436,0.002,105050.0,105040.0,0.73766503]
[1762864380741,0.097207,105050.0,105040.0,0.73766503]
[1762864380943,0.09940503,105050.0,105040.0,0.52464313]
[1762864381133,0.09940503,105050.0,105040.0,0.63115408]
[1762864381435,0.00419803,105050.0,105040.0,0.63115408]
[1762864381634,0.00419803,105050.0,105040.0,0.73766503]
[1762864381940,0.09940503,105050.0,105040.0,0.73766503]
[1762864382137,0.09940503,105050.0,105040.0,0.63115408]
[1762864382138,0.20591598,105050.0,105040.0,0.63115408]
[1762864382638,0.20591598,105050.0,105040.0,0.26963408]
[1762864382939,0.20591598,105050.0,105040.0,0.16312313]
[1762864384135,0.20591598,105050.0,105040.0,0.06790713]
[1762864384335,0.20591598,105050.0,105040.0,0.16312313]
[1762864385244,0.20591598,105050.0,105040.0,0.06790713]
[1762864385443,0.20591598,105050.0,105040.0,0.16312313]
[1762864385841,0.20591598,105050.0,105040.0,0.06790713]
[1762864391738,0.20591598,105050.0,105040.0,0.07090713]
[1762864392245,0.45242693,105050.0,105040.0,0.003]
[1762864392541,0.61242693,105050.0,105040.0,0.003]
[1762864392847,0.50582952,105050.0,105040.0,0.01243046]
[1762864393042,0.50582952,105050.0,105040.0,0.003]
[1762864393446,0.39940503,105050.0,105040.0,0.06026]
[1762864393748,0.56096503,105050.0,105040.0,0.06026]
[1762864393950,0.66738952,105050.0,105040.0,0.06026]
[1762864394454,0.66738952,105050.0,105040.0,0.155476]
[1762864394640,0.56738952,105050.0,105040.0,0.155476]
[1762864395650,0.56738952,105050.0,105040.0,0.06026]
[1762864396450,0.46096503,105050.0,105040.0,0.06026]
[1762864396852,0.46096503,105050.0,105040.0,0.07002971]
[1762864397150,0.56738952,105050.0,105040.0,0.07002971]
[1762864397548,0.56738952,105050.0,105040.0,0.06026]
[1762864399354,0.56738952,105050.0,105040.0,0.06983154]
[1762864406551,0.84738952,105050.0,105040.0,0.003]
[1762864411351,0.84738952,105050.0,105040.0,0.02602]
[1762864411857,0.84738952,105050.0,105040.0,0.06183]
[1762864413359,0.84738952,105050.0,105040.0,0.0396]
[1762864414058,0.84738952,105050.0,105040.0,0.003]
[1762864422759,0.74096503,105050.0,105040.0,0.06183]
[1762864422963,0.84738952,105050.0,105040.0,0.06183]
[1762864423267,0.48582952,105050.0,105040.0,0.06183]
[1762864423564,0.84734952,105050.0,105040.0,0.06183]
[1762864426471,0.46092503,105050.0,105040.0,0.06183]
[1762864426769,0.56734952,105050.0,105040.0,0.06183]
[1762864427269,0.56734952,105050.0,105040.0,0.157046]
[1762864427763,0.56734952,105050.0,105040.0,0.06183]
[1762864428160,0.56734952,105050.0,105040.0,0.157046]
[1762864428364,0.56734952,105050.0,105040.0,0.06183]
[1762864428873,0.09940503,105050.0,105040.0,0.157046]
[1762864429065,0.46092503,105050.0,105040.0,0.157046]
[1762864430168,0.46092503,105050.0,105040.0,0.06183]
[1762864430368,0.56734952,105050.0,105040.0,0.06183]
[1762864430573,0.56734952,105050.0,105040.0,0.157046]
[1762864431673,0.56734952,105050.0,105040.0,0.06183]
[1762864440374,0.56734952,105050.0,105040.0,0.157046]
[1762864440877,0.46092503,105050.0,105040.0,0.157046]
[1762864441077,0.56734952,105050.0,105040.0,0.06183]
[1762864446485,0.56734952,105050.0,105040.0,0.02602]
[1762864446684,0.56734952,105050.0,105040.0,0.06072]
[1762864450681,0.56734952,105050.0,105040.0,0.155936]
[1762864451285,0.20582952,105050.0,105040.0,0.155936]
[1762864451484,0.56746952,105050.0,105040.0,0.155936]
[1762864453291,0.56746952,105050.0,105040.0,0.06072]
[1762864453587,0.56746952,105050.0,105040.0,0.03939]
[1762864453792,0.87746952,105050.0,105040.0,0.06072]
[1762864454894,0.87745924,105050.0,105040.0,0.06072]
[1762864455190,1.00805293,105050.0,105040.0,0.003]
[1762864457185,0.095216,105040.0,105030.0,0.00014245]
[1762864457385,0.67024245,105040.0,105030.0,0.00014245]
[1762864459401,0.80082365,105040.0,105030.0,1e-08]
[1762864459698,0.67024245,105040.0,105030.0,0.03427001]
[1762864461692,0.67024245,105040.0,105030.0,0.05565001]
[1762864463199,0.67024245,105040.0,105030.0,1e-08]
[1762864463401,0.67024245,105040.0,105030.0,0.00100001]
[1762864466704,0.095225,105030.0,105020.0,0.00947495]
[1762864466898,0.095225,105030.0,105010.0,0.01325]
[1762864466899,0.0952341,105020.0,105010.0,0.05718]
[1762864467100,0.31026055,105020.0,105010.0,0.05718]
[1762864467298,0.20384634,105020.0,105010.0,0.05718]
[1762864467701,0.20384634,105020.0,105010.0,0.06652722]
[1762864468405,0.31026055,105020.0,105010.0,0.06652722]
[1762864470906,0.20384634,105020.0,105010.0,0.26818463]
[1762864471298,0.20384634,105020.0,105010.0,0.16177042]
[1762864471505,0.20384634,105020.0,105010.0,0.26818463]
[1762864472104,0.20384634,105020.0,105010.0,0.17294143]
[1762864472301,0.31026055,105020.0,105010.0,0.06652722]
[1762864475408,0.31026055,105020.0,105010.0,0.04514722]
[1762864475701,0.31026055,105020.0,105010.0,0.06652722]
[1762864477102,0.31026055,105020.0,105010.0,0.06852722]
[1762864479999,0.31026055,105020.0,105010.0,0.02459722]
[1762864480205,0.31026055,105020.0,105010.0,0.01134722]
[1762864480811,0.31026055,105020.0,105010.0,0.03389722]
[1762864481010,0.31026055,105020.0,105010.0,0.06802722]
[1762864482806,0.31026055,105020.0,105010.0,0.01134722]
[1762864482807,0.61026055,105020.0,105010.0,0.01134722]
[1762864483016,0.61026055,105020.0,105010.0,0.06802722]
[1762864484013,0.61026055,105020.0,105010.0,0.05868]
[1762864484307,0.61026055,105020.0,105010.0,0.06068]
[1762864485415,0.71667476,105020.0,105010.0,1e-07]
[1762864485614,0.74073031,105020.0,105010.0,1e-07]
[1762864486804,0.0952522,105000.0,104990.0,0.00023811]
[1762864487115,0.67243865,105000.0,104990.0,0.03553811]
[1762864487305,0.67243865,105000.0,104990.0,0.05691811]
[1762864487504,0.68243865,105000.0,104990.0,0.05691811]
[1762864487701,0.97243865,105000.0,104990.0,0.05691811]
[1762864487901,0.97343865,105000.0,104990.0,0.05691811]
[1762864488109,0.97343865,105000.0,104990.0,0.01298811]
[1762864488618,0.97443865,105000.0,104990.0,0.01298811]
[1762864488806,0.97443865,105000.0,104990.0,0.03553811]
[1762864489116,0.97443865,105000.0,104990.0,0.05691811]
[1762864496519,0.97443865,105000.0,104990.0,0.00023811]
[1762864497119,0.97443865,105000.0,104990.0,0.02329811]
[1762864497419,0.97443865,105000.0,104990.0,0.03721811]
[1762864497625,0.97443865,105000.0,104990.0,0.05964811]
[1762864498321,0.97443865,105000.0,104990.0,0.03721811]
[1762864498517,0.0952613,104990.0,104980.0,0.03605245]
[1762864498718,0.31028775,104990.0,104980.0,0.05848245]
[1762864498919,0.31028775,104990.0,104980.0,0.06802696]
[1762864499819,0.31028775,104990.0,104980.0,0.05848245]
[1762864500415,0.32028775,104990.0,104980.0,0.00014245]
[1762864500623,0.0952704,104980.0,104970.0,0.05834]
[1762864500813,0.67233685,104980.0,104970.0,0.05834]
[1762864502321,0.67233685,104980.0,104970.0,0.03591]
[1762864502712,0.67233685,104980.0,104970.0,0.05834]
[1762864505629,0.67233685,104980.0,104960.0,0.07354405]
[1762864505630,0.0952795,104970.0,104960.0,0.07354405]
[1762864505824,0.31030595,104970.0,104960.0,0.06401577]
[1762864507013,0.09747753,104970.0,104960.0,0.07542277]
[1762864507323,0.20389174,104970.0,104960.0,0.07542277]
[1762864507509,0.31030595,104970.0,104960.0,0.07542277]
[1762864508524,0.61030595,104970.0,104960.0,0.07542277]
[1762864508830,0.50389174,104970.0,104960.0,0.07542277]
[1762864509926,0.61030595,104970.0,104960.0,0.07542277]
[1762864510329,0.61030595,104970.0,104960.0,0.06601577]
[1762864512526,0.61030595,104970.0,104960.0,0.00767577]
[1762864513322,0.61030595,104970.0,104960.0,0.03083577]
[1762864513521,0.61030595,104970.0,104960.0,0.00767577]
[1762864514931,0.61065167,104970.0,104960.0,0.00767577]
[1762864515524,0.61065167,104970.0,104960.0,0.04475577]
[1762864515724,0.61065167,104970.0,104960.0,0.06718577]
[1762864516826,0.5040646,104970.0,104960.0,0.06718577]
[1762864517026,0.8660246,104970.0,104960.0,0.06718577]
[1762864517334,0.09747753,104970.0,104960.0,0.16247427]
[1762864517532,0.5660646,104970.0,104960.0,0.16247427]
[1762864517731,0.36419803,104970.0,104960.0,0.16247427]
[1762864517927,0.67265167,104970.0,104960.0,0.04475577]
[1762864518232,0.67265167,104970.0,104960.0,0.06718577]
[1762864518730,0.5660646,104970.0,104960.0,0.06718577]
[1762864518928,0.09747753,104970.0,104960.0,0.06718577]
[1762864519235,0.5660646,104970.0,104960.0,0.06718577]
[1762864519425,0.5660646,104970.0,104960.0,0.06518577]
[1762864520034,0.45947753,104970.0,104960.0,0.06518577]
[1762864520341,0.5660646,104970.0,104960.0,0.06518577]
[1762864521229,0.00219803,104970.0,104960.0,0.16047427]
[1762864521431,0.09747753,104970.0,104960.0,0.16047427]
[1762864522122,0.09747753,104970.0,104960.0,0.06518577]
[1762864522325,0.09747753,104970.0,104960.0,0.16047427]
[1762864523235,0.09747753,104970.0,104960.0,0.06518577]
[1762864523534,0.09747753,104970.0,104960.0,0.16047427]
[1762864524035,0.09747753,104970.0,104960.0,0.24593962]
[1762864525037,0.09747753,104970.0,104960.0,0.16047427]
[1762864525223,0.09747753,104970.0,104960.0,0.22350962]
[1762864525428,0.2040646,104970.0,104960.0,0.15047112]
[1762864525633,0.2040646,104970.0,104960.0,0.16029427]
[1762864526030,0.09747753,104970.0,104960.0,0.16029427]
[1762864526429,0.09747753,104970.0,104960.0,0.24575962]
[1762864526736,0.09747753,104970.0,104960.0,0.16029427]
[1762864526937,0.09747753,104970.0,104960.0,0.24575962]
[1762864528139,0.0952795,104970.0,104960.0,0.35234669]
[1762864528339,0.0952766,104980.0,104970.0,0.1090025]
[1762864528541,0.2040617,104980.0,104970.0,0.23811785]
[1762864529535,0.09847463,104980.0,104970.0,0.23811785]
[1762864529943,0.09847463,104980.0,104970.0,0.1526525]
[1762864530938,0.09947463,104980.0,104970.0,0.1526525]
[1762864537154,0.2060617,104980.0,104970.0,0.05738]
[1762864537747,0.2060617,104980.0,104970.0,0.05813]
[1762864539646,0.0952795,104970.0,104960.0,0.06434577]
[1762864539848,0.67245167,104970.0,104960.0,0.06434577]
[1762864540249,0.5658646,104970.0,104960.0,0.06434577]
[1762864540851,0.67245167,104970.0,104960.0,0.06434577]
[1762864542354,0.67245167,104970.0,104960.0,0.04134577]
[1762864542555,0.67245167,104970.0,104960.0,0.00567577]
[1762864544759,0.68245167,104970.0,104960.0,0.00567577]
[1762864544955,0.0952885,104960.0,104950.0,0.0002382]
[1762864545167,0.2040736,104960.0,104950.0,0.0002382]
[1762864545554,0.3540736,104960.0,104950.0,0.0002382]
[1762864546061,0.35416589,104960.0,104950.0,0.0002382]
[1762864547260,0.50416589,104960.0,104950.0,0.0022382]
[1762864547460,0.90416589,104960.0,104950.0,0.0022382]
[1762864547658,0.0953067,104940.0,104930.0,25.02268021]
[1762864547960,0.5664518,104940.0,104930.0,25.02268021]
[1762864548752,0.5664518,104940.0,104930.0,25.02468021]
[1762864549752,0.5664518,104940.0,104930.0,25.02668021]
[1762864550359,0.45986473,104940.0,104930.0,25.02668021]
[1762864550654,0.2040918,104940.0,104930.0,25.12199601]
[1762864551058,0.56421377,104940.0,104930.0,25.02668021]
[1762864551256,0.0953067,104940.0,104930.0,25.12199601]
[1762864551457,0.4576267,104940.0,104930.0,25.12199601]
[1762864552760,0.0953067,104940.0,104930.0,25.12199601]
[1762864552972,0.5664518,104940.0,104930.0,25.02668021]
[1762864553463,0.5664118,104940.0,104930.0,25.02668021]
[1762864557162,0.67299887,104940.0,104930.0,25.02668021]
[1762864557562,0.5664118,104940.0,104930.0,25.02668021]
[1762864561560,0.2040918,104940.0,104930.0,25.12199601]
[1762864561765,0.4575067,104940.0,104930.0,25.12199601]
[1762864561962,0.56409377,104940.0,104930.0,25.02668021]
[1762864562161,0.56409377,104940.0,104930.0,25.12199601]
[1762864562661,0.67287887,104940.0,104930.0,24.3745797]
[1762864562864,1.04287887,104940.0,104930.0,24.3884897]
[1762864563064,1.04295647,104940.0,104930.0,23.85856058]
[1762864563269,1.04295647,104940.0,104930.0,23.65792268]
[1762864563270,2.65295647,104940.0,104930.0,23.65792268]
[1762864563463,2.87954354,104940.0,104930.0,23.49228478]
[1762864563778,2.65295647,104940.0,104930.0,23.49228478]
[1762864564155,2.76254354,104940.0,104930.0,23.10490356]
[1762864564467,2.76554354,104940.0,104930.0,22.78832999]
[1762864564670,2.65895647,104940.0,104930.0,22.78832999]
[1762864564969,2.65895647,104940.0,104930.0,22.80223999]
[1762864565971,2.25895647,104940.0,104930.0,22.80223999]
[1762864566163,2.25595647,104940.0,104930.0,22.80223999]
[1762864566356,2.25995647,104940.0,104930.0,22.80223999]
[1762864568364,0.8345843,104940.0,104930.0,22.80223999]
[1762864568570,0.62117137,104940.0,104930.0,22.80223999]
[1762864568971,0.62117137,104940.0,104930.0,22.89755579]
[1762864569165,0.25897137,104940.0,104930.0,22.89755579]
[1762864569366,0.25897137,104940.0,104930.0,22.80223999]
[1762864569770,0.25797137,104940.0,104930.0,22.80223999]
[1762864569970,0.25497137,104940.0,104930.0,22.80223999]
[1762864570272,0.25797137,104940.0,104930.0,22.80223999]
[1762864570668,0.11266467,104940.0,104930.0,22.89755579]
[1762864570968,0.0060776,104940.0,104930.0,22.89755579]
[1762864571373,0.36346245,104950.0,104940.0,0.1535067]
[1762864571672,0.50004952,104950.0,104940.0,0.0582]
[1762864572773,0.50604952,104950.0,104940.0,0.0582]
[1762864573468,0.50824755,104950.0,104940.0,0.0582]
[1762864576577,0.50824755,104950.0,104940.0,0.1535067]
[1762864576578,0.77824755,104950.0,104940.0,0.1535067]
[1762864576976,0.77826571,104950.0,104940.0,0.1535067]
[1762864577672,0.54606768,104950.0,104940.0,0.1535067]
[1762864581580,0.18274768,104950.0,104940.0,0.26011193]
[1762864582483,0.18274768,104950.0,104940.0,0.62307193]
[1762864583584,0.17974768,104950.0,104940.0,0.62307193]
[1762864583774,0.18074768,104950.0,104940.0,0.62307193]
[1762864584174,0.17874768,104950.0,104940.0,0.62307193]
[1762864586377,0.07214245,104950.0,104940.0,0.62307193]
[1762864586584,0.17874768,104950.0,104940.0,0.62307193]
[1762864587277,0.18094571,104950.0,104940.0,0.5164667]
[1762864588088,0.18094571,104950.0,104940.0,0.42116]
[1762864588281,0.18094571,104950.0,104940.0,0.421]
[1762864588487,0.18094571,104950.0,104940.0,0.1535067]
[1762864588782,0.18094571,104950.0,104940.0,0.5162667]
[1762864590185,0.18094571,104950.0,104940.0,0.0582]
[1762864590589,0.28755094,104950.0,104940.0,0.0582]
[1762864591290,0.18094571,104950.0,104940.0,0.0582]
[1762864592186,0.18094571,104950.0,104940.0,0.1535067]
[1762864592685,0.18094571,104950.0,104940.0,0.0582]
[1762864593488,0.18094571,104950.0,104940.0,0.1535067]
[1762864594183,0.18094571,104950.0,104940.0,0.0582]
[1762864598800,0.18094571,104950.0,104940.0,0.1535067]
[1762864599696,0.18094571,104950.0,104940.0,0.26011193]
[1762864599902,0.18094571,104950.0,104940.0,0.34557728]
[1762864600492,0.18094571,104950.0,104940.0,0.14366535]
[1762864600800,0.07434048,104950.0,104940.0,0.23897205]
[1762864600998,0.18094571,104950.0,104940.0,0.14366535]
[1762864603402,0.56755094,104950.0,104940.0,0.01391]
[1762864603797,0.67415617,104950.0,104930.0,22.80223999]
[1762864603991,0.68249569,104940.0,104930.0,22.80223999]
[1762864604190,0.99469372,104940.0,104930.0,22.80223999]
[1762864605003,0.88808849,104940.0,104930.0,22.80223999]
[1762864606696,0.52840849,104940.0,104930.0,22.80223999]
[1762864606995,0.89108849,104940.0,104930.0,22.80223999]
[1762864608896,0.89108849,104940.0,104930.0,22.80323999]
[1762864609102,0.52840849,104940.0,104930.0,22.80323999]
[1762864609301,0.89108849,104940.0,104930.0,22.80323999]
[1762864609801,0.89108849,104940.0,104930.0,22.80223999]
[1762864610102,0.89408849,104940.0,104930.0,22.80223999]
[1762864611804,0.53140849,104940.0,104930.0,22.80223999]
[1762864612004,0.89400849,104940.0,104930.0,22.80223999]
[1762864615904,1.00061372,104940.0,104930.0,22.80223999]
[1762864616600,1.00061372,104940.0,104930.0,22.38345316]
[1762864617407,0.63801372,104940.0,104930.0,22.38345316]
[1762864617705,1.00061372,104940.0,104930.0,22.38345316]
[1762864618903,1.04583823,104940.0,104930.0,21.95119633]
[1762864619206,1.40061372,104940.0,104930.0,21.95119633]
[1762864619706,1.44584164,104940.0,104930.0,21.5326295]
[1762864620505,1.44584164,104940.0,104930.0,21.5460395]
[1762864621300,1.89385747,104940.0,104930.0,21.11406267]
[1762864621500,1.86954453,104940.0,104930.0,21.11406267]
[1762864621706,1.89385845,104940.0,104930.0,21.11406267]
[1762864621900,1.63385845,104940.0,104930.0,21.12747267]
[1762864622100,1.61389845,104940.0,104930.0,21.12747267]
[1762864622296,1.58958453,104940.0,104930.0,21.12747267]
[1762864622508,0.93927641,104940.0,104930.0,21.12747267]
[1762864622700,1.04592164,104940.0,104930.0,21.12747267]
[1762864623210,0.45868,104940.0,104930.0,21.12747267]
[1762864623404,0.91189046,104940.0,104930.0,21.12747267]
[1762864623609,0.91408849,104940.0,104930.0,21.12747267]
[1762864624708,0.91424849,104940.0,104930.0,21.12747267]
[1762864626913,0.55140849,104940.0,104930.0,21.12747267]
[1762864627114,0.91424849,104940.0,104930.0,21.12747267]
[1762864629211,0.40760523,104940.0,104930.0,21.3293937]
[1762864629512,0.48292,104940.0,104930.0,21.3293937]
[1762864629709,0.44792,104940.0,104930.0,21.3293937]
[1762864629909,0.37792,104940.0,104930.0,21.3293937]
[1762864630116,0.34292,104940.0,104930.0,21.3293937]
[1762864630300,0.34292,104940.0,104930.0,21.22278847]
[1762864630501,0.44952523,104940.0,104930.0,21.3293937]
[1762864631112,0.12,104940.0,104930.0,21.3293937]
[1762864631313,0.58952523,104940.0,104930.0,21.12747267]
[1762864631616,0.74110046,104940.0,104930.0,21.12747267]
[1762864631816,0.63449523,104940.0,104930.0,21.12747267]
[1762864632016,0.58952523,104940.0,104930.0,21.12747267]
[1762864632615,0.72075849,104940.0,104930.0,21.12747267]
[1762864632916,0.71008803,104940.0,104930.0,21.12747267]
[1762864633214,0.92329849,104940.0,104930.0,21.12747267]
[1762864633420,0.92429849,104940.0,104930.0,21.12747267]
[1762864633615,0.56137849,104940.0,104930.0,21.12747267]
[1762864633919,0.40980326,104940.0,104930.0,21.12747267]
[1762864634112,0.77188326,104940.0,104930.0,21.12747267]
[1762864634312,0.77388326,104940.0,104930.0,21.12747267]
[1762864634516,0.88048849,104940.0,104930.0,21.12747267]
[1762864636117,0.062,104940.0,104930.0,21.12747267]
[1762864636319,0.37176523,104940.0,104930.0,21.2340779]
[1762864636818,0.26516,104940.0,104930.0,21.22278847]
[1762864637422,0.22916,104940.0,104930.0,21.22278847]
[1762864637617,0.00014245,104950.0,104940.0,0.04399]
[1762864637810,0.20556291,104970.0,104960.0,0.04399]
[1762864637811,0.25053291,104970.0,104960.0,0.04399]
[1762864638013,0.97593094,104970.0,104960.0,0.04399]
[1762864638421,0.78048803,104970.0,104960.0,0.04399]
[1762864638615,0.97593094,104970.0,104960.0,0.04399]
[1762864639411,0.97889094,104970.0,104960.0,0.04399]
[1762864641423,0.97589094,104970.0,104960.0,0.04399]
[1762864641624,0.97789094,104970.0,104960.0,0.04399]
[1762864642015,0.97589094,104970.0,104960.0,0.04399]
[1762864642317,0.08558,104960.0,104950.0,0.05968245]
[1762864642514,0.60322094,104960.0,104950.0,0.05968245]
[1762864643617,0.60322094,104960.0,104950.0,0.00014245]
[1762864643819,0.60322094,104960.0,104950.0,0.02120245]
[1762864644124,0.60522094,104960.0,104950.0,0.05968245]
[1762864644822,0.60722094,104960.0,104950.0,0.05968245]
[1762864645923,0.41177803,104960.0,104950.0,0.05968245]
[1762864646126,0.97018094,104960.0,104950.0,0.05968245]
[1762864646923,0.77473803,104960.0,104950.0,0.05968245]
[1762864648321,0.41177803,104960.0,104950.0,0.05968245]
[1762864648521,0.97018094,104960.0,104950.0,0.08250245]
[1762864649127,0.97018094,104960.0,104950.0,0.05968245]
[1762864649327,0.77473803,104960.0,104950.0,0.08250245]
[1762864650121,0.75218803,104960.0,104950.0,0.08250245]
[1762864651024,0.38930803,104960.0,104950.0,0.08250245]
[1762864651329,0.75214803,104960.0,104950.0,0.08250245]
[1762864652227,0.68903803,104960.0,104950.0,0.08250245]
[1762864652422,0.71198803,104960.0,104950.0,0.17780005]
[1762864653528,0.71098803,104960.0,104950.0,0.08250245]
[1762864653724,0.74914803,104960.0,104950.0,0.08250245]
[1762864654029,0.75014803,104960.0,104950.0,0.08250245]
[1762864655323,0.75014803,104960.0,104950.0,0.17780005]
[1762864655724,0.70998803,104960.0,104950.0,0.17780005]
[1762864656029,0.68703803,104960.0,104950.0,0.17780005]
[1762864656428,0.70998803,104960.0,104950.0,0.17780005]
[1762864656728,0.68703803,104960.0,104950.0,0.17780005]
[1762864657024,0.68484,104960.0,104950.0,0.17780005]
[1762864657227,0.43695803,104960.0,104950.0,0.45870831]
[1762864657820,0.36476,104960.0,104950.0,0.2632654]
[1762864658226,0.07492245,104980.0,104970.0,0.05954]
[1762864658426,0.74988048,104980.0,104970.0,0.05954]
[1762864658933,0.85642493,104980.0,104970.0,0.05954]
[1762864659128,0.85638493,104980.0,104970.0,0.05954]
[1762864659324,0.74984048,104980.0,104970.0,0.1687295]
[1762864659531,0.75084048,104980.0,104970.0,0.27527395]
[1762864659730,0.75084048,104980.0,104970.0,0.1687295]
[1762864659929,0.75184048,104980.0,104970.0,0.1687295]
[1762864661133,0.75184048,104980.0,104970.0,0.07345]
[1762864661334,0.85838493,104980.0,104970.0,0.05954]
[1762864661533,0.75184048,104980.0,104970.0,0.05954]
[1762864661934,0.85838493,104980.0,104970.0,0.05954]
[1762864662134,0.85838493,104980.0,104960.0,0.02106]
[1762864662135,0.08558,104970.0,104960.0,0.02106]
[1762864662438,0.62700248,104970.0,104960.0,0.05954]
[1762864663236,0.52045803,104970.0,104960.0,0.08236]
[1762864663439,0.52045803,104970.0,104960.0,0.1776485]
[1762864663633,0.52045803,104970.0,104960.0,0.16437596]
[1762864663831,0.49798803,104970.0,104960.0,0.29374041]
[1762864664028,0.13530803,104970.0,104960.0,0.29374041]
[1762864664238,0.52041803,104970.0,104960.0,0.18719596]
[1762864664940,0.49794803,104970.0,104960.0,0.29374041]
[1762864665536,0.73794803,104970.0,104960.0,0.29374041]
[1762864665738,0.52794803,104970.0,104960.0,0.29374041]
[1762864665932,0.72794803,104970.0,104960.0,0.29374041]
[1762864666134,0.11219803,104970.0,104960.0,0.29374041]
[1762864666334,0.11219803,104970.0,104960.0,0.61736576]
[1762864666533,0.11219803,104970.0,104960.0,0.37920576]
[1762864668236,0.13514803,104970.0,104960.0,0.37920576]
[1762864668541,0.17530803,104970.0,104960.0,0.29374041]
[1762864668941,0.19777803,104970.0,104960.0,0.18719596]
[1762864669141,0.17530803,104970.0,104960.0,0.29374041]
[1762864669343,0.19777803,104970.0,104960.0,0.29374041]
[1762864669537,0.30432248,104970.0,104960.0,0.06908746]
[1762864669733,0.30432248,104970.0,104960.0,0.05954]
[1762864670945,0.19777803,104970.0,104960.0,0.05954]
[1762864671142,0.19777803,104970.0,104960.0,0.02106]
[1762864671343,0.09503,104960.0,104950.0,0.17241005]
[1762864671543,0.45990803,104960.0,104950.0,0.17241005]
[1762864672055,0.45990803,104960.0,104950.0,0.07711245]
[1762864672539,0.45990803,104960.0,104950.0,0.00114245]
[1762864673148,0.46990803,104960.0,104950.0,0.00114245]
[1762864674055,0.46990803,104960.0,104950.0,0.07811245]
[1762864674748,0.46990803,104960.0,104950.0,0.04184245]
[1762864675054,0.46990803,104960.0,104950.0,0.00114245]
[1762864675242,0.46990803,104960.0,104950.0,0.00214245]
[1762864675442,0.66528568,104960.0,104950.0,0.00214245]
[1762864675850,0.46990803,104960.0,104950.0,0.00214245]
[1762864676244,0.46990803,104960.0,104950.0,0.07911245]
[1762864676445,0.46982803,104960.0,104950.0,0.07911245]
[1762864676855,0.10722803,104960.0,104950.0,0.17441005]
[1762864677056,0.10722803,104960.0,104950.0,0.3879677]
[1762864677251,0.40490803,104960.0,104950.0,0.2780554]
[1762864677452,0.00219803,104960.0,104950.0,0.2780554]
[1762864677648,0.39954803,104960.0,104950.0,0.2780554]